[Event "4. Memorial Svat.Hastika OPEN"]
[Site "Jesenik, Czech Republic"]
[Date "2022.09.03"]
[Round "2.5"]
[White "Gawlas, Roman"]
[Black "Zamarsky, Patrik"]
[Result "1-0"]
[TimeControl "720+3"]
[WhiteFideId "351652"]
[BlackFideId "23714280"]
[WhiteElo "1906"]
[BlackElo "1216"]

1. d4 {[%clk 00:12:02]} e6 {[%clk 00:12:02]} {[%emt 00:00:02]} 2. c4 {[%clk
00:12:01]} {[%emt 00:00:02]} d5 {[%clk 00:12:00]} {[%emt 00:00:01]} 3. Nc3
{[%clk 00:12:00]} Nf6 {[%clk 00:11:58]} {[%emt 00:00:02]} 4. cxd5 {[%clk
00:11:58]} {[%emt 00:00:02]} Nxd5 {[%clk 00:11:56]} {[%emt 00:00:02]} 5. e4
{[%clk 00:11:54]} {[%emt 00:00:05]} Nxc3 {[%clk 00:11:50]} {[%emt 00:00:05]} 6.
bxc3 {[%clk 00:11:52]} {[%emt 00:00:02]} c5 {[%clk 00:11:44]} {[%emt 00:00:05]}
7. a3 {[%clk 00:11:49]} {[%emt 00:00:04]} Nc6 {[%clk 00:11:19]} {[%emt
00:00:25]} 8. Nf3 {[%clk 00:11:44]} {[%emt 00:00:05]} cxd4 {[%clk 00:11:07]}
{[%emt 00:00:12]} 9. cxd4 {[%clk 00:11:42]} {[%emt 00:00:02]} b6 {[%clk
00:11:01]} {[%emt 00:00:06]} 10. Bb5 {[%clk 00:11:03]} {[%emt 00:00:39]} Bd7
{[%clk 00:11:00]} 11. O-O {[%clk 00:10:16]} {[%emt 00:00:47]} Be7 {[%clk
00:10:39]} {[%emt 00:00:21]} 12. Re1 {[%clk 00:09:50]} {[%emt 00:00:26]} O-O
{[%clk 00:09:21]} {[%emt 00:01:18]} 13. Bf4 {[%clk 00:08:54]} {[%emt 00:00:55]}
Nb8 {[%clk 00:08:00]} {[%emt 00:01:22]} 14. Bc4 {[%clk 00:08:15]} {[%emt
00:00:39]} Nc6 {[%clk 00:06:58]} {[%emt 00:01:02]} 15. Qd3 {[%clk 00:07:13]}
{[%emt 00:01:01]} Bc8 {[%clk 00:06:00]} {[%emt 00:00:58]} 16. d5 {[%clk
00:05:24]} {[%emt 00:01:50]} exd5 {[%clk 00:05:46]} {[%emt 00:00:14]} 17. exd5
{[%clk 00:05:18]} {[%emt 00:00:06]} Na5 {[%clk 00:05:16]} {[%emt 00:00:30]} 18.
Ba2 {[%clk 00:04:55]} {[%emt 00:00:23]} Bf6 {[%clk 00:04:49]} {[%emt 00:00:26]}
19. Rad1 {[%clk 00:04:08]} {[%emt 00:00:47]} Bb7 {[%clk 00:04:03]} {[%emt
00:00:47]} 20. Ne5 {[%clk 00:02:20]} {[%emt 00:01:48]} Rc8 {[%clk 00:02:28]}
{[%emt 00:01:34]} 21. Re3 {[%clk 00:01:46]} {[%emt 00:00:34]} Re8 {[%clk
00:01:21]} {[%emt 00:01:07]} 22. d6 {[%clk 00:01:31]} {[%emt 00:00:15]} Rf8
{[%clk 00:00:33]} {[%emt 00:00:49]} 23. Ng4 {[%clk 00:00:58]} {[%emt 00:00:33]}
Bg5 {[%clk 00:00:11]} {[%emt 00:00:22]} 24. Bb1 {[%clk 00:00:20]} {[%emt
00:00:38]} Bxf4 {[%clk 00:00:10]} {[%emt 00:00:01]} 25. Qxh7# {[%clk 00:00:18]}
{[%emt 00:00:01]} 1-0

[Event "4. Memorial Svat.Hastika OPEN"]
[Site "Jesenik, Czech Republic"]
[Date "2022.09.03"]
[Round "2.7"]
[White "Ondrackova, Veronika"]
[Black "Cechacek, Miroslav"]
[Result "0-1"]
[TimeControl "720+3"]
[WhiteFideId "23739983"]
[BlackFideId "377090"]
[WhiteElo "1213"]
[BlackElo "1541"]

1. e4 {[%clk 00:12:04]} {[%emt 00:00:02]} c5 {[%clk 00:12:04]} {[%emt
00:00:03]} 2. Nf3 {[%clk 00:12:03]} {[%emt 00:00:04]} Nc6 {[%clk 00:12:04]}
{[%emt 00:00:03]} 3. d4 {[%clk 00:12:05]} {[%emt 00:00:02]} cxd4 {[%clk
00:12:05]} {[%emt 00:00:02]} 4. Nxd4 {[%clk 00:12:06]} {[%emt 00:00:02]} e5
{[%clk 00:12:06]} {[%emt 00:00:02]} 5. Nf3 {[%clk 00:11:51]} {[%emt 00:00:18]}
Nf6 {[%clk 00:12:00]} {[%emt 00:00:09]} 6. Nc3 {[%clk 00:11:52]} {[%emt
00:00:02]} Bb4 {[%clk 00:11:59]} {[%emt 00:00:04]} 7. Bd3 {[%clk 00:11:16]}
{[%emt 00:00:38]} O-O {[%clk 00:11:52]} {[%emt 00:00:09]} 8. O-O {[%clk
00:11:04]} {[%emt 00:00:15]} Bxc3 {[%clk 00:11:30]} {[%emt 00:00:26]} 9. bxc3
{[%clk 00:11:04]} {[%emt 00:00:04]} d5 {[%clk 00:11:03]} {[%emt 00:00:29]} 10.
Qe2 {[%clk 00:10:11]} {[%emt 00:00:55]} Bg4 {[%clk 00:10:37]} {[%emt 00:00:29]}
11. h3 {[%clk 00:08:34]} {[%emt 00:01:41]} Bh5 {[%clk 00:10:03]} {[%emt
00:00:36]} 12. Bg5 {[%clk 00:08:11]} {[%emt 00:00:27]} Re8 {[%clk 00:08:05]}
{[%emt 00:02:01]} 13. Rad1 {[%clk 00:07:47]} {[%emt 00:00:28]} d4 {[%clk
00:07:12]} {[%emt 00:00:56]} 14. Bc4 {[%clk 00:05:36]} {[%emt 00:02:14]} h6
{[%clk 00:06:57]} {[%emt 00:00:18]} 15. Bh4 {[%clk 00:05:29]} {[%emt 00:00:09]}
g5 {[%clk 00:06:58]} {[%emt 00:00:02]} 16. Bg3 {[%clk 00:05:29]} {[%emt
00:00:03]} g4 {[%clk 00:06:57]} {[%emt 00:00:04]} 17. hxg4 {[%clk 00:05:02]}
{[%emt 00:00:30]} Bxg4 {[%clk 00:06:57]} {[%emt 00:00:03]} 18. Qd3 {[%clk
00:04:29]} {[%emt 00:00:36]} Nh5 {[%clk 00:06:43]} {[%emt 00:00:17]} 19. Bh2
{[%clk 00:04:06]} {[%emt 00:00:26]} Qf6 {[%clk 00:05:59]} {[%emt 00:00:47]} 20.
Rd2 {[%clk 00:02:14]} {[%emt 00:01:55]} Rad8 {[%clk 00:05:59]} {[%emt
00:00:03]} 21. cxd4 {[%clk 00:01:23]} {[%emt 00:00:53]} Bxf3 {[%clk 00:05:41]}
{[%emt 00:00:22]} 22. Qxf3 {[%clk 00:00:57]} {[%emt 00:00:28]} Qxf3 {[%clk
00:05:35]} {[%emt 00:00:09]} 23. gxf3 {[%clk 00:00:59]} {[%emt 00:00:01]} Nxd4
{[%clk 00:05:34]} {[%emt 00:00:05]} 24. Kg2 {[%clk 00:00:45]} {[%emt 00:00:17]}
Nf4+ {[%clk 00:04:45]} {[%emt 00:00:51]} 25. Bxf4 {[%clk 00:00:42]} {[%emt
00:00:07]} exf4 {[%clk 00:04:46]} {[%emt 00:00:02]} 26. Rfd1 {[%clk 00:00:41]}
{[%emt 00:00:04]} Nc6 {[%clk 00:04:31]} {[%emt 00:00:18]} 27. Rd7 {[%clk
00:00:19]} {[%emt 00:00:25]} Rxd7 {[%clk 00:04:26]} {[%emt 00:00:08]} 28. Rxd7
{[%clk 00:00:21]} Re7 {[%clk 00:04:28]} 29. Rd6 {[%clk 00:00:16]} {[%emt
00:00:07]} Kg7 {[%clk 00:04:16]} {[%emt 00:00:16]} 30. Rd5 {[%clk 00:00:05]}
{[%emt 00:00:14]} Ne5 {[%clk 00:03:59]} {[%emt 00:00:19]} 31. Bb3 {[%clk
00:00:05]} {[%emt 00:00:04]} Kf6 {[%clk 00:04:00]} {[%emt 00:00:02]} 32. Rd6+
{[%clk 00:00:07]} {[%emt 00:00:01]} Kg5 {[%clk 00:03:57]} {[%emt 00:00:05]} 33.
Rd1 {[%emt 00:00:04]} f5 {[%clk 00:03:49]} {[%emt 00:00:09]} 34. Rd5 {[%clk
00:00:07]} {[%emt 00:00:04]} fxe4 {[%clk 00:03:48]} {[%emt 00:00:04]} 35. fxe4
{[%clk 00:00:09]} Kg4 {[%clk 00:03:48]} {[%emt 00:00:03]} 36. Rd8 {[%clk
00:00:09]} {[%emt 00:00:03]} h5 {[%clk 00:03:47]} {[%emt 00:00:04]} 37. Rg8+
{[%clk 00:00:10]} {[%emt 00:00:02]} Kh4 {[%clk 00:03:46]} {[%emt 00:00:04]} 38.
c3 {[%clk 00:00:04]} {[%emt 00:00:09]} Ng4 {[%clk 00:03:46]} {[%emt 00:00:03]}
39. Kf1 {[%clk 00:00:06]} {[%emt 00:00:01]} Nh2+ {[%clk 00:03:47]} {[%emt
00:00:02]} 40. Kg2 {[%clk 00:00:08]} {[%emt 00:00:01]} Ng4 {[%clk 00:03:34]}
{[%emt 00:00:15]} 41. Bc2 {[%clk 00:00:11]} {[%emt 00:00:01]} Rf7 {[%clk
00:03:30]} {[%emt 00:00:06]} 42. f3 {[%clk 00:00:12]} {[%emt 00:00:02]} Ne3+
{[%clk 00:03:30]} {[%emt 00:00:03]} 43. Kf2 {[%emt 00:00:03]} Nxc2 {[%clk
00:03:32]} 44. Rg1 {[%clk 00:00:05]} {[%emt 00:00:10]} Rd7 {[%clk 00:03:28]}
{[%emt 00:00:08]} 45. Rh1+ {[%clk 00:00:00]} {[%emt 00:00:05]} Kg5 {[%emt
00:00:01]} 46. Rg1+ {[%clk 00:00:00]} Kh6 {[%clk 00:03:28]} 47. Re1 Rd2+ {[%emt
00:00:05]} 48. Re2 {[%clk 00:00:00]} Rxe2+ 49. Kxe2 {[%emt 00:00:03]} h4 {[%clk
00:03:28]} {[%emt 00:00:04]} 50. Kf2 {[%emt 00:00:03]} Kh5 {[%emt 00:00:01]} 51.
Kg2 {[%clk 00:00:00]} Ne3+ {[%emt 00:00:04]} 52. Kf2 h3 {[%clk 00:03:28]}
{[%emt 00:00:01]} 53. Kg1 {[%emt 00:00:03]} Kh4 54. Kh2 {[%clk 00:00:00]}
{[%emt 00:00:02]} 0-1

[Event "4. Memorial Svat.Hastika OPEN"]
[Site "Jesenik, Czech Republic"]
[Date "2022.09.03"]
[Round "2.8"]
[White "Taborsky, Bedrich"]
[Black "Koterova, Hana"]
[Result "1-0"]
[TimeControl "720+3"]
[WhiteFideId "378151"]
[WhiteElo "1793"]
[BlackElo "1309"]

1. e4 {[%clk 00:12:03]} {[%emt 00:00:02]} e5 {[%clk 00:12:05]} {[%emt
00:00:02]} 2. Nf3 {[%clk 00:12:05]} {[%emt 00:00:02]} Nc6 {[%clk 00:12:04]}
{[%emt 00:00:03]} 3. Bc4 {[%clk 00:12:07]} d6 {[%clk 00:12:03]} {[%emt
00:00:04]} 4. c3 {[%clk 00:12:06]} {[%emt 00:00:04]} Nf6 {[%clk 00:11:55]}
{[%emt 00:00:11]} 5. Ng5 {[%clk 00:12:06]} {[%emt 00:00:04]} d5 {[%clk
00:11:39]} {[%emt 00:00:19]} 6. exd5 {[%clk 00:12:07]} {[%emt 00:00:02]} Nxd5
{[%clk 00:11:02]} {[%emt 00:00:40]} 7. Nxf7 {[%clk 00:12:07]} {[%emt 00:00:02]}
Kxf7 {[%clk 00:10:50]} {[%emt 00:00:15]} 8. Qf3+ {[%clk 00:12:09]} Ke6 {[%clk
00:10:32]} {[%emt 00:00:21]} 9. O-O {[%clk 00:11:58]} {[%emt 00:00:14]} Be7
{[%clk 00:09:57]} {[%emt 00:00:38]} 10. d4 {[%clk 00:11:36]} {[%emt 00:00:25]}
e4 {[%clk 00:09:33]} {[%emt 00:00:27]} 11. Qxe4+ {[%emt 00:01:21]} 1-0

[Event "4. Memorial Svat.Hastika OPEN"]
[Site "Jesenik, Czech Republic"]
[Date "2022.09.03"]
[Round "2.9"]
[White "Poljak, Lucian"]
[Black "Kincl, Dobromir"]
[Result "0-1"]
[TimeControl "720+3"]
[WhiteFideId "23740590"]
[WhiteElo "1367"]
[BlackElo "1683"]

1. e4 {[%clk 00:12:04]} {[%emt 00:00:02]} d6 {[%clk 00:12:05]} {[%emt
00:00:02]} 2. d4 {[%clk 00:12:03]} {[%emt 00:00:03]} Nf6 {[%clk 00:12:06]}
{[%emt 00:00:02]} 3. Nc3 {[%clk 00:12:04]} {[%emt 00:00:02]} c6 {[%clk
00:12:08]} 4. Nf3 {[%clk 00:11:47]} {[%emt 00:00:21]} Qa5 {[%clk 00:12:08]}
{[%emt 00:00:03]} 5. e5 {[%clk 00:11:32]} {[%emt 00:00:18]} dxe5 {[%clk
00:12:05]} {[%emt 00:00:05]} 6. dxe5 {[%clk 00:10:46]} {[%emt 00:00:49]} Ne4
{[%clk 00:12:02]} {[%emt 00:00:05]} 7. Bd2 {[%clk 00:10:19]} {[%emt 00:00:31]}
Nxd2 {[%clk 00:11:59]} {[%emt 00:00:06]} 8. Qxd2 {[%clk 00:10:20]} {[%emt
00:00:03]} e6 {[%clk 00:11:58]} {[%emt 00:00:02]} 9. a3 {[%clk 00:09:57]}
{[%emt 00:00:28]} Nd7 {[%clk 00:11:35]} {[%emt 00:00:25]} 10. Rd1 {[%clk
00:08:06]} {[%emt 00:01:55]} Be7 {[%clk 00:11:15]} {[%emt 00:00:20]} 11. b4
{[%clk 00:07:39]} {[%emt 00:00:32]} Qxa3 {[%clk 00:10:32]} {[%emt 00:00:46]} 12.
Bc4 {[%clk 00:03:49]} {[%emt 00:03:54]} Bxb4 {[%clk 00:09:53]} {[%emt
00:00:40]} 13. Bb3 {[%clk 00:03:40]} {[%emt 00:00:14]} Qa5 {[%clk 00:09:47]}
{[%emt 00:00:07]} 14. O-O {[%clk 00:02:38]} {[%emt 00:01:06]} Bxc3 {[%clk
00:08:47]} {[%emt 00:01:03]} 15. Qf4 {[%clk 00:02:07]} {[%emt 00:00:34]} Nxe5
{[%clk 00:07:37]} {[%emt 00:01:14]} 16. Nd4 {[%clk 00:00:11]} {[%emt 00:01:59]}
Bxd4 {[%clk 00:06:52]} {[%emt 00:00:47]} 17. Qxd4 {[%clk 00:00:12]} {[%emt
00:00:03]} O-O {[%clk 00:06:26]} {[%emt 00:00:28]} 18. Rfe1 {[%clk 00:00:05]}
{[%emt 00:00:11]} Ng6 {[%clk 00:06:18]} {[%emt 00:00:10]} 19. Qg4 {[%clk
00:00:06]} {[%emt 00:00:03]} Ne5 {[%clk 00:05:57]} {[%emt 00:00:21]} 20. Qe4
{[%clk 00:00:04]} {[%emt 00:00:07]} Ng6 {[%clk 00:05:42]} {[%emt 00:00:17]} 21.
Ra1 {[%clk 00:00:06]} {[%emt 00:00:03]} Qc7 {[%clk 00:05:39]} {[%emt 00:00:04]}
22. Rad1 {[%clk 00:00:08]} {[%emt 00:00:03]} a5 {[%clk 00:05:37]} {[%emt
00:00:05]} 23. c4 {[%clk 00:00:07]} {[%emt 00:00:04]} a4 {[%clk 00:05:37]}
{[%emt 00:00:03]} 24. Bc2 {[%clk 00:00:09]} f5 {[%clk 00:05:23]} {[%emt
00:00:17]} 25. Qe3 {[%clk 00:00:09]} {[%emt 00:00:03]} e5 {[%clk 00:05:14]}
{[%emt 00:00:12]} 26. c5 {[%clk 00:00:11]} {[%emt 00:00:01]} f4 {[%clk
00:05:12]} {[%emt 00:00:04]} 27. Qe4 {[%clk 00:00:11]} {[%emt 00:00:03]} Bf5
{[%clk 00:05:10]} {[%emt 00:00:05]} 28. Qc4+ {[%clk 00:00:12]} {[%emt
00:00:03]} Kh8 {[%clk 00:05:09]} {[%emt 00:00:04]} 29. Bxf5 {[%clk 00:00:12]}
{[%emt 00:00:03]} Rxf5 {[%clk 00:05:10]} {[%emt 00:00:02]} 30. Rd6 {[%clk
00:00:12]} {[%emt 00:00:03]} f3 {[%clk 00:04:53]} {[%emt 00:00:19]} 31. g3
{[%clk 00:00:14]} {[%emt 00:00:02]} a3 {[%clk 00:04:44]} {[%emt 00:00:12]} 32.
Red1 {[%clk 00:00:15]} {[%emt 00:00:02]} Raf8 {[%clk 00:02:12]} {[%emt
00:02:35]} 33. Rd7 {[%clk 00:00:15]} {[%emt 00:00:04]} Qa5 {[%clk 00:01:55]}
{[%emt 00:00:19]} 34. Qd3 {[%clk 00:00:05]} {[%emt 00:00:13]} R5f6 {[%clk
00:01:10]} {[%emt 00:00:47]} 35. Rd8 {[%clk 00:00:05]} {[%emt 00:00:05]} a2
{[%clk 00:00:57]} {[%emt 00:00:16]} 36. Rxf8+ {[%clk 00:00:05]} {[%emt
00:00:03]} Rxf8 {[%clk 00:00:57]} {[%emt 00:00:02]} 37. Qc2 {[%clk 00:00:06]}
{[%emt 00:00:04]} e4 {[%clk 00:00:49]} {[%emt 00:00:09]} 38. Rd2 {[%clk
00:00:04]} {[%emt 00:00:06]} a1=Q+ {[%clk 00:00:45]} 39. Rd1 {[%clk 00:00:04]}
{[%emt 00:00:10]} Qxd1+ 40. Qxd1 {[%clk 00:00:05]} Rd8 {[%clk 00:00:45]} {[%emt
00:00:02]} 41. Qc1 {[%clk 00:00:06]} {[%emt 00:00:02]} Qd2 {[%clk 00:00:46]}
{[%emt 00:00:02]} 42. Qxd2 {[%clk 00:00:07]} {[%emt 00:00:03]} Rxd2 {[%clk
00:00:47]} {[%emt 00:00:01]} 43. h4 {[%clk 00:00:08]} {[%emt 00:00:02]} 0-1

[Event "4. Memorial Svat.Hastika OPEN"]
[Site "Jesenik, Czech Republic"]
[Date "2022.09.03"]
[Round "2.10"]
[White "Zrubek, Dan"]
[Black "Bartusik, Jan"]
[Result "1-0"]
[TimeControl "720+3"]
[WhiteFideId "23718714"]
[BlackFideId "23718412"]
[WhiteElo "1504"]
[BlackElo "1138"]

1. e4 {[%clk 00:12:03]} {[%emt 00:00:02]} e5 {[%clk 00:12:03]} {[%emt
00:00:03]} 2. Nf3 {[%clk 00:12:05]} {[%emt 00:00:02]} Nc6 {[%clk 00:12:03]}
{[%emt 00:00:03]} 3. Bb5 {[%clk 00:12:07]} Qf6 {[%clk 00:12:03]} {[%emt
00:00:03]} 4. O-O {[%clk 00:11:47]} {[%emt 00:00:23]} Bc5 {[%clk 00:11:52]}
{[%emt 00:00:15]} 5. d3 {[%clk 00:11:39]} {[%emt 00:00:11]} a6 {[%clk
00:11:48]} {[%emt 00:00:07]} 6. Ba4 {[%clk 00:11:33]} {[%emt 00:00:08]} Nge7
{[%clk 00:11:32]} {[%emt 00:00:19]} 7. Nc3 {[%clk 00:10:47]} {[%emt 00:00:50]}
d6 {[%clk 00:11:29]} {[%emt 00:00:05]} 8. Bg5 {[%clk 00:10:03]} {[%emt
00:00:46]} b5 {[%clk 00:11:20]} {[%emt 00:00:13]} 9. Bxf6 {[%clk 00:10:03]}
{[%emt 00:00:03]} bxa4 {[%clk 00:11:11]} {[%emt 00:00:12]} 10. Bxe7 {[%clk
00:10:00]} {[%emt 00:00:06]} Nxe7 {[%clk 00:11:11]} {[%emt 00:00:02]} 11. Nxa4
{[%clk 00:10:01]} {[%emt 00:00:03]} Ba7 {[%clk 00:11:06]} {[%emt 00:00:08]} 12.
d4 {[%clk 00:10:01]} {[%emt 00:00:03]} exd4 {[%clk 00:10:58]} {[%emt 00:00:10]}
13. Nxd4 {[%clk 00:10:03]} {[%emt 00:00:02]} O-O {[%clk 00:10:57]} {[%emt
00:00:04]} 14. Nc3 {[%clk 00:09:52]} {[%emt 00:00:15]} Ng6 {[%clk 00:10:42]}
{[%emt 00:00:17]} 15. Nd5 {[%clk 00:09:44]} {[%emt 00:00:11]} c5 {[%clk
00:09:32]} {[%emt 00:01:13]} 16. Nc6 {[%clk 00:09:46]} {[%emt 00:00:02]} Bb6
{[%clk 00:09:03]} {[%emt 00:00:32]} 17. Nxb6 {[%clk 00:09:46]} {[%emt
00:00:02]} 1-0

[Event "4. Memorial Svat.Hastika OPEN"]
[Site "Jesenik, Czech Republic"]
[Date "2022.09.03"]
[Round "3.2"]
[White "Wrobel, Maciej"]
[Black "Bares, Jachym"]
[Result "1/2-1/2"]
[TimeControl "720+3"]
[WhiteFideId "1181351"]
[BlackFideId "345075"]
[WhiteElo "1873"]
[BlackElo "1978"]

1. e4 {[%clk 00:12:04]} {[%emt 00:00:01]} e5 {[%clk 00:12:05]} {[%emt
00:00:02]} 2. Nf3 {[%clk 00:12:05]} {[%emt 00:00:02]} Nc6 {[%clk 00:12:07]}
{[%emt 00:00:01]} 3. Bc4 {[%clk 00:12:06]} {[%emt 00:00:02]} Nf6 {[%clk
00:12:06]} {[%emt 00:00:02]} 4. d4 {[%clk 00:12:08]} {[%emt 00:00:04]} exd4
{[%clk 00:12:08]} {[%emt 00:00:02]} 5. O-O {[%clk 00:12:08]} {[%emt 00:00:02]}
Nxe4 {[%clk 00:12:07]} {[%emt 00:00:03]} 6. Re1 {[%clk 00:12:08]} {[%emt
00:00:03]} d5 {[%clk 00:12:09]} {[%emt 00:00:02]} 7. Bxd5 {[%clk 00:12:09]}
{[%emt 00:00:02]} Qxd5 {[%clk 00:12:11]} {[%emt 00:00:01]} 8. Nc3 {[%clk
00:12:10]} {[%emt 00:00:03]} Qh5 {[%clk 00:12:11]} {[%emt 00:00:01]} 9. Nxe4
{[%clk 00:12:10]} {[%emt 00:00:03]} Be6 {[%clk 00:12:06]} {[%emt 00:00:09]} 10.
Bg5 {[%clk 00:12:01]} {[%emt 00:00:11]} Bd6 {[%clk 00:12:03]} {[%emt 00:00:07]}
11. Nxd6+ {[%clk 00:11:44]} {[%emt 00:00:20]} cxd6 {[%clk 00:12:03]} {[%emt
00:00:03]} 12. Bf4 {[%clk 00:11:27]} {[%emt 00:00:20]} Qd5 {[%clk 00:11:53]}
{[%emt 00:00:13]} 13. c3 {[%clk 00:10:45]} {[%emt 00:00:45]} O-O {[%clk
00:10:22]} {[%emt 00:01:34]} 14. Nxd4 {[%clk 00:09:52]} {[%emt 00:00:56]} Nxd4
{[%clk 00:10:02]} {[%emt 00:00:22]} 15. Qxd4 {[%clk 00:09:49]} {[%emt
00:00:07]} Qxd4 {[%clk 00:09:58]} {[%emt 00:00:07]} 16. cxd4 {[%clk 00:09:50]}
{[%emt 00:00:02]} d5 {[%clk 00:09:50]} {[%emt 00:00:12]} 17. Rac1 {[%clk
00:09:44]} {[%emt 00:00:09]} Rac8 {[%clk 00:09:51]} 18. Rxc8 {[%clk 00:09:30]}
{[%emt 00:00:17]} Rxc8 {[%clk 00:09:53]} {[%emt 00:00:01]} 19. Rc1 {[%clk
00:09:30]} {[%emt 00:00:02]} Rxc1+ {[%clk 00:09:54]} {[%emt 00:00:02]} 1/2-1/2

[Event "4. Memorial Svat.Hastika OPEN"]
[Site "Jesenik, Czech Republic"]
[Date "2022.09.03"]
[Round "3.3"]
[White "Skovron, Josef"]
[Black "Cimburek, Jan"]
[Result "1/2-1/2"]
[TimeControl "720+3"]
[WhiteFideId "329886"]
[BlackFideId "390283"]
[WhiteElo "1821"]
[BlackElo "1591"]

1. e4 {[%clk 00:12:05]} {[%emt 00:00:01]} c5 {[%clk 00:12:05]} {[%emt
00:00:01]} 2. Nc3 {[%clk 00:12:03]} {[%emt 00:00:05]} g6 {[%clk 00:12:06]}
{[%emt 00:00:02]} 3. f4 {[%clk 00:12:02]} {[%emt 00:00:04]} Bg7 {[%clk
00:12:01]} {[%emt 00:00:08]} 4. Nf3 {[%clk 00:12:02]} {[%emt 00:00:02]} d6
{[%clk 00:12:03]} {[%emt 00:00:02]} 5. Bc4 {[%clk 00:11:48]} {[%emt 00:00:17]}
a6 {[%clk 00:12:03]} {[%emt 00:00:03]} 6. a4 {[%clk 00:11:49]} {[%emt
00:00:02]} Bd7 {[%clk 00:12:05]} {[%emt 00:00:01]} 7. O-O {[%clk 00:11:44]}
{[%emt 00:00:08]} Nc6 {[%clk 00:12:04]} {[%emt 00:00:05]} 8. Ne2 {[%clk
00:11:19]} {[%emt 00:00:28]} Na5 {[%clk 00:11:49]} {[%emt 00:00:18]} 9. Ba2
{[%clk 00:11:00]} {[%emt 00:00:20]} b5 {[%clk 00:11:50]} {[%emt 00:00:04]} 10.
c3 {[%clk 00:10:43]} {[%emt 00:00:20]} bxa4 {[%clk 00:11:16]} {[%emt 00:00:37]}
11. d4 {[%clk 00:10:33]} {[%emt 00:00:13]} cxd4 {[%clk 00:11:15]} {[%emt
00:00:04]} 12. cxd4 {[%clk 00:10:34]} {[%emt 00:00:02]} Rb8 {[%clk 00:10:47]}
{[%emt 00:00:31]} 13. Ng3 {[%clk 00:10:06]} {[%emt 00:00:30]} Nb3 {[%clk
00:10:18]} {[%emt 00:00:33]} 14. Rb1 {[%clk 00:09:37]} {[%emt 00:00:33]} Nxc1
{[%clk 00:10:16]} {[%emt 00:00:04]} 15. Qxc1 {[%clk 00:09:31]} {[%emt
00:00:09]} Qb6 {[%clk 00:10:11]} {[%emt 00:00:09]} 16. Qd2 {[%clk 00:09:07]}
{[%emt 00:00:27]} Bg4 {[%clk 00:09:01]} {[%emt 00:01:12]} 17. e5 {[%clk
00:08:26]} {[%emt 00:00:44]} Bxf3 {[%clk 00:08:35]} {[%emt 00:00:29]} 18. Rxf3
{[%clk 00:08:20]} {[%emt 00:00:09]} Nh6 {[%clk 00:08:12]} {[%emt 00:00:26]} 19.
Kh1 {[%clk 00:07:11]} {[%emt 00:01:12]} O-O {[%clk 00:07:58]} {[%emt 00:00:17]}
20. h3 {[%clk 00:06:55]} {[%emt 00:00:19]} Rbd8 {[%clk 00:07:51]} {[%emt
00:00:09]} 21. e6 {[%clk 00:06:40]} {[%emt 00:00:19]} Qxd4 {[%clk 00:07:20]}
{[%emt 00:00:34]} 22. exf7+ {[%clk 00:06:18]} {[%emt 00:00:25]} Nxf7 {[%clk
00:07:20]} {[%emt 00:00:03]} 23. Qe2 {[%clk 00:05:58]} {[%emt 00:00:23]} Kh8
{[%clk 00:05:31]} {[%emt 00:01:53]} 24. Qxe7 {[%clk 00:05:21]} {[%emt
00:00:40]} Rde8 {[%clk 00:05:22]} {[%emt 00:00:12]} 25. Qb7 {[%clk 00:04:56]}
{[%emt 00:00:24]} Nd8 {[%clk 00:04:57]} {[%emt 00:00:31]} 26. Qxa6 {[%clk
00:04:47]} {[%emt 00:00:12]} Ne6 {[%clk 00:03:16]} {[%emt 00:01:45]} 27. f5
{[%clk 00:04:30]} {[%emt 00:00:19]} Nc5 {[%clk 00:02:55]} {[%emt 00:00:24]} 28.
Qc4 {[%clk 00:04:14]} {[%emt 00:00:17]} Qxc4 {[%clk 00:02:37]} {[%emt
00:00:24]} 29. Bxc4 {[%clk 00:04:16]} {[%emt 00:00:01]} Rb8 {[%clk 00:02:35]}
{[%emt 00:00:04]} 30. fxg6 {[%clk 00:04:00]} {[%emt 00:00:19]} Rxf3 {[%clk
00:02:07]} {[%emt 00:00:31]} 31. gxf3 {[%clk 00:04:02]} {[%emt 00:00:02]} hxg6
{[%clk 00:02:03]} {[%emt 00:00:06]} 32. Ne4 {[%clk 00:03:36]} {[%emt 00:00:30]}
Nxe4 33. fxe4 Bxb2 {[%emt 00:00:15]} 34. Kg2 {[%emt 00:00:10]} a3 35. Kf3
{[%clk 00:12:03]} {[%emt 00:00:03]} 1/2-1/2